[Event "Titled Tuesday Blitz August 23 Late 2022"]
[White "Suder, Jakub"]
[Black "Hansen, Eric"]
[WhiteFideId "1195310"]
[BlackFideId "2606771"]
[WhiteElo "2095"]
[BlackElo "2568"]
[Result "1/2-1/2"]
[Round "02"]
[TimeControl "180+1"]
[Date "2022.08.23"]
[WhiteClock "0:00:15"]
[BlackClock "0:00:04"]

1. d4 {[%clk 0:02:55]}  Nf6 {[%clk 0:02:58]} 2. c4 {[%clk 0:02:56]}  e6 {[%clk 0:02:58]} 3. Nc3 {[%clk 0:02:56]}  Bb4 {[%clk 0:02:58]} 4. e3 {[%clk 0:02:57]}  O-O {[%clk 0:02:59]} 5. Nf3 {[%clk 0:02:49]}  c5 {[%clk 0:02:58]} 6. Bd3 {[%clk 0:02:47]}  d6 {[%clk 0:02:48]} 7. O-O {[%clk 0:02:45]}  Nc6 {[%clk 0:02:40]} 8. Bd2 {[%clk 0:02:42]}  e5 {[%clk 0:02:26]} 9. dxe5 {[%clk 0:02:37]}  dxe5 {[%clk 0:02:26]} 10. Qc2 {[%clk 0:02:35]}  Bxc3 {[%clk 0:02:23]} 11. Bxc3 {[%clk 0:02:35]}  Qe7 {[%clk 0:02:23]} 12. Ng5 {[%clk 0:02:28]}  h6 {[%clk 0:02:21]} 13. Nh7 {[%clk 0:02:19]}  Rd8 {[%clk 0:02:18]} 14. Nxf6+ {[%clk 0:02:18]}  Qxf6 {[%clk 0:02:19]} 15. Rfd1 {[%clk 0:02:16]}  Bg4 {[%clk 0:02:17]} 16. f3 {[%clk 0:02:14]}  Be6 {[%clk 0:02:18]} 17. b3 {[%clk 0:02:11]}  Nb4 {[%clk 0:02:15]} 18. Bxb4 {[%clk 0:02:06]}  cxb4 {[%clk 0:02:15]} 19. Bh7+ {[%clk 0:02:05]}  Kf8 {[%clk 0:02:15]} 20. Be4 {[%clk 0:02:04]}  Qe7 {[%clk 0:02:15]} 21. Bd5 {[%clk 0:02:01]}  g6 {[%clk 0:02:04]} 22. e4 {[%clk 0:02:00]}  Rac8 {[%clk 0:01:59]} 23. Qf2 {[%clk 0:01:59]}  b6 {[%clk 0:01:59]} 24. Qe3 {[%clk 0:01:57]}  Kg7 {[%clk 0:01:58]} 25. Rd2 {[%clk 0:01:56]}  Bd7 {[%clk 0:01:50]} 26. Rf1 {[%clk 0:01:52]}  Qg5 {[%clk 0:01:42]} 27. Kf2 {[%clk 0:01:47]}  Be8 {[%clk 0:01:39]} 28. Rfd1 {[%clk 0:01:45]}  Rc5 {[%clk 0:01:38]} 29. g3 {[%clk 0:01:39]}  Qf6 {[%clk 0:01:34]} 30. Kg2 {[%clk 0:01:37]}  Ra5 {[%clk 0:01:28]} 31. Rf1 {[%clk 0:01:37]}  Qg5 {[%clk 0:01:19]} 32. Qe2 {[%clk 0:01:24]}  Rc5 {[%clk 0:01:12]} 33. Kh1 {[%clk 0:01:22]}  Qe7 {[%clk 0:01:06]} 34. f4 {[%clk 0:01:20]}  exf4 {[%clk 0:01:04]} 35. gxf4 {[%clk 0:01:18]}  Bc6 {[%clk 0:01:01]} 36. f5 {[%clk 0:01:14]}  Qg5 {[%clk 0:00:48]} 37. Qf2 {[%clk 0:01:05]}  Bxd5 {[%clk 0:00:43]} 38. exd5 {[%clk 0:00:57]}  Rc7 {[%clk 0:00:30]} 39. Re2 {[%clk 0:00:56]}  Kh7 {[%clk 0:00:28]} 40. fxg6+ {[%clk 0:00:45]}  fxg6 {[%clk 0:00:28]} 41. Rg1 {[%clk 0:00:39]}  Qh5 {[%clk 0:00:28]} 42. Re6 {[%clk 0:00:38]}  Rg8 {[%clk 0:00:20]} 43. Qg3 {[%clk 0:00:37]}  Rcg7 {[%clk 0:00:20]} 44. Qg4 {[%clk 0:00:36]}  Qxg4 {[%clk 0:00:15]} 45. Rxg4 {[%clk 0:00:37]}  Rd7 {[%clk 0:00:14]} 46. Rf4 {[%clk 0:00:35]}  b5 {[%clk 0:00:11]} 47. Kg2 {[%clk 0:00:32]}  bxc4 {[%clk 0:00:10]} 48. bxc4 {[%clk 0:00:33]}  a5 {[%clk 0:00:10]} 49. Rb6 {[%clk 0:00:32]}  Rc8 {[%clk 0:00:09]} 50. Rg4 {[%clk 0:00:27]}  g5 {[%clk 0:00:07]} 51. h4 {[%clk 0:00:23]}  Rdc7 {[%clk 0:00:07]} 52. hxg5 {[%clk 0:00:23]}  Rxc4 {[%clk 0:00:07]} 53. Rxc4 {[%clk 0:00:22]}  Rxc4 {[%clk 0:00:08]} 54. Rxh6+ {[%clk 0:00:22]}  Kg7 {[%clk 0:00:08]} 55. Kf3 {[%clk 0:00:18]}  Rd4 {[%clk 0:00:05]} 56. d6 {[%clk 0:00:17]}  a4 {[%clk 0:00:04]} 57. Ke3 {[%clk 0:00:16]}  Rd5 {[%clk 0:00:04]} 58. Re6 {[%clk 0:00:14]}  Kf7 {[%clk 0:00:03]} 59. Re7+ {[%clk 0:00:14]}  Kg6 {[%clk 0:00:04]} 60. d7 {[%clk 0:00:14]}  b3 {[%clk 0:00:02]} 61. axb3 {[%clk 0:00:13]}  axb3 {[%clk 0:00:03]} 62. Re6+ {[%clk 0:00:14]}  Kxg5 {[%clk 0:00:03]} 63. Rb6 {[%clk 0:00:14]}  Rxd7 {[%clk 0:00:03]} 64. Rxb3 {[%clk 0:00:14]}  Kf6 {[%clk 0:00:04]} 65. Rd3 {[%clk 0:00:14]}  Rxd3+ {[%clk 0:00:04]} 66. Kxd3 {[%clk 0:00:15]} 1/2-1/2


[Site "https://www.chess.com"]

[Event "Titled Tuesday Blitz August 23 Late 2022"]
[White "Taichman, Ori"]
[Black "Pichot, Alan"]
[WhiteFideId "2804069"]
[BlackFideId "110973"]
[WhiteElo "2227"]
[BlackElo "2578"]
[Result "1-0"]
[Round "02"]
[TimeControl "180+1"]
[Date "2022.08.23"]
[WhiteClock "0:00:49"]
[BlackClock "0:01:32"]

1. e4 {[%clk 0:03:00]}  e5 {[%clk 0:03:00]} 2. d4 {[%clk 0:03:00]}  exd4 {[%clk 0:03:00]} 3. Qxd4 {[%clk 0:03:01]}  Nc6 {[%clk 0:02:59]} 4. Qe3 {[%clk 0:03:02]}  Nf6 {[%clk 0:02:53]} 5. Nc3 {[%clk 0:03:02]}  b6 {[%clk 0:02:50]} 6. Bd2 {[%clk 0:03:02]}  Bc5 {[%clk 0:02:51]} 7. Qg3 {[%clk 0:03:02]}  O-O {[%clk 0:02:50]} 8. O-O-O {[%clk 0:03:02]}  Re8 {[%clk 0:02:50]} 9. Bg5 {[%clk 0:02:55]}  Bd6 {[%clk 0:02:34]} 10. f4 {[%clk 0:02:52]}  Be7 {[%clk 0:02:25]} 11. Nf3 {[%clk 0:02:14]}  Bb7 {[%clk 0:02:20]} 12. h4 {[%clk 0:02:11]}  d6 {[%clk 0:02:17]} 13. h5 {[%clk 0:02:09]}  Kh8 {[%clk 0:02:17]} 14. Bc4 {[%clk 0:02:05]}  Rf8 {[%clk 0:02:10]} 15. Nh4 {[%clk 0:01:54]}  Na5 {[%clk 0:01:55]} 16. Ng6+ {[%clk 0:01:09]}  fxg6 {[%clk 0:01:51]} 17. hxg6 {[%clk 0:01:10]}  h6 {[%clk 0:01:31]} 18. Bxh6 {[%clk 0:00:58]}  gxh6 {[%clk 0:01:30]} 19. g7+ {[%clk 0:00:54]}  Kh7 {[%clk 0:01:31]} 20. Rxh6+ {[%clk 0:00:51]}  Kxh6 {[%clk 0:01:31]} 21. Qg5+ {[%clk 0:00:49]}  Kh7 {[%clk 0:01:31]} 22. Rh1+ {[%clk 0:00:49]}  Nh5 {[%clk 0:01:32]} 23. Rxh5# {[%clk 0:00:49]} 1-0


[Site "https://www.chess.com"]

[Event "Titled Tuesday Blitz August 23 Late 2022"]
[White "Tatarinov, Dmitry"]
[Black "Naroditsky, Daniel"]
[WhiteFideId "24160067"]
[BlackFideId "2026961"]
[WhiteElo "2324"]
[BlackElo "2628"]
[Result "0-1"]
[Round "02"]
[TimeControl "180+1"]
[Date "2022.08.23"]
[WhiteClock "0:00:15"]
[BlackClock "0:00:07"]

1. c4 {[%clk 0:03:00]}  e5 {[%clk 0:02:56]} 2. Nc3 {[%clk 0:03:00]}  Bb4 {[%clk 0:02:55]} 3. Nd5 {[%clk 0:03:00]}  Be7 {[%clk 0:02:55]} 4. e3 {[%clk 0:02:59]}  Nf6 {[%clk 0:02:55]} 5. Nxe7 {[%clk 0:02:59]}  Qxe7 {[%clk 0:02:56]} 6. d3 {[%clk 0:02:59]}  O-O {[%clk 0:02:55]} 7. Nf3 {[%clk 0:02:58]}  c6 {[%clk 0:02:53]} 8. b3 {[%clk 0:02:51]}  d5 {[%clk 0:02:51]} 9. Bb2 {[%clk 0:02:50]}  d4 {[%clk 0:02:50]} 10. Be2 {[%clk 0:02:42]}  c5 {[%clk 0:02:48]} 11. O-O {[%clk 0:02:42]}  Nc6 {[%clk 0:02:48]} 12. e4 {[%clk 0:02:34]}  Rd8 {[%clk 0:02:23]} 13. Bc1 {[%clk 0:02:34]}  h6 {[%clk 0:02:12]} 14. Ne1 {[%clk 0:02:26]}  Be6 {[%clk 0:02:04]} 15. g3 {[%clk 0:02:26]}  Bh3 {[%clk 0:02:03]} 16. Ng2 {[%clk 0:02:26]}  Qd7 {[%clk 0:01:48]} 17. f3 {[%clk 0:02:17]}  a6 {[%clk 0:01:46]} 18. Rf2 {[%clk 0:02:17]}  b5 {[%clk 0:01:47]} 19. f4 {[%clk 0:01:51]}  Ng4 {[%clk 0:01:41]} 20. Bxg4 {[%clk 0:01:48]}  Bxg4 {[%clk 0:01:42]} 21. Qf1 {[%clk 0:01:42]}  f5 {[%clk 0:01:27]} 22. exf5 {[%clk 0:01:38]}  Bxf5 {[%clk 0:01:11]} 23. fxe5 {[%clk 0:01:34]}  Rf8 {[%clk 0:01:07]} 24. Nh4 {[%clk 0:01:23]}  Bh3 {[%clk 0:01:06]} 25. Qe1 {[%clk 0:01:16]}  Rxf2 {[%clk 0:01:04]} 26. Qxf2 {[%clk 0:01:17]}  Rf8 {[%clk 0:01:02]} 27. Bf4 {[%clk 0:01:10]}  g5 {[%clk 0:00:48]} 28. Ng6 {[%clk 0:01:10]}  Rf7 {[%clk 0:00:45]} 29. cxb5 {[%clk 0:01:07]}  axb5 {[%clk 0:00:45]} 30. Rc1 {[%clk 0:00:59]}  gxf4 {[%clk 0:00:44]} 31. Nxf4 {[%clk 0:00:53]}  Nxe5 {[%clk 0:00:41]} 32. Qe2 {[%clk 0:00:47]}  Re7 {[%clk 0:00:35]} 33. Rxc5 {[%clk 0:00:47]}  Nf3+ {[%clk 0:00:35]} 34. Qxf3 {[%clk 0:00:43]}  Re1+ {[%clk 0:00:35]} 35. Kf2 {[%clk 0:00:43]}  Rf1+ {[%clk 0:00:35]} 36. Ke2 {[%clk 0:00:44]}  Rxf3 {[%clk 0:00:36]} 37. Kxf3 {[%clk 0:00:43]}  Bg4+ {[%clk 0:00:34]} 38. Ke4 {[%clk 0:00:44]}  Qa7 {[%clk 0:00:30]} 39. Rxb5 {[%clk 0:00:40]}  Qxa2 {[%clk 0:00:30]} 40. Kxd4 {[%clk 0:00:38]}  Qxh2 {[%clk 0:00:28]} 41. Rb8+ {[%clk 0:00:39]}  Kf7 {[%clk 0:00:27]} 42. Rb7+ {[%clk 0:00:40]}  Ke8 {[%clk 0:00:27]} 43. Nd5 {[%clk 0:00:38]}  Qxg3 {[%clk 0:00:21]} 44. Rg7 {[%clk 0:00:31]}  Qf2+ {[%clk 0:00:18]} 45. Ke5 {[%clk 0:00:27]}  Qf5+ {[%clk 0:00:16]} 46. Kd6 {[%clk 0:00:28]}  Qe6+ {[%clk 0:00:16]} 47. Kc5 {[%clk 0:00:28]}  Kf8 {[%clk 0:00:16]} 48. Ra7 {[%clk 0:00:19]}  h5 {[%clk 0:00:11]} 49. Ra8+ {[%clk 0:00:19]}  Kg7 {[%clk 0:00:11]} 50. Ra7+ {[%clk 0:00:20]}  Kh6 {[%clk 0:00:11]} 51. Re7 {[%clk 0:00:20]}  Qc8+ {[%clk 0:00:10]} 52. Rc7 {[%clk 0:00:19]}  Qf8+ {[%clk 0:00:10]} 53. Kd4 {[%clk 0:00:19]}  h4 {[%clk 0:00:09]} 54. Rc6+ {[%clk 0:00:19]}  Kg5 {[%clk 0:00:09]} 55. Nc3 {[%clk 0:00:16]}  Bf3 {[%clk 0:00:07]} 56. Rc5+ {[%clk 0:00:15]}  Kg4 {[%clk 0:00:07]} 0-1


[Site "https://www.chess.com"]

[Event "Titled Tuesday Blitz August 23 Late 2022"]
[White "Theodorou, Nikolas"]
[Black "Ghazarian, Kirk"]
[WhiteFideId "4262875"]
[BlackFideId "30908604"]
[WhiteElo "2484"]
[BlackElo "2074"]
[Result "1-0"]
[Round "02"]
[TimeControl "180+1"]
[Date "2022.08.23"]
[WhiteClock "0:01:18"]
[BlackClock "0:00:16"]

1. Nf3 {[%clk 0:03:00]}  c5 {[%clk 0:02:56]} 2. g3 {[%clk 0:03:00]}  g6 {[%clk 0:02:56]} 3. Bg2 {[%clk 0:03:01]}  Bg7 {[%clk 0:02:57]} 4. O-O {[%clk 0:03:01]}  Nc6 {[%clk 0:02:56]} 5. c4 {[%clk 0:03:02]}  Nh6 {[%clk 0:02:56]} 6. Nc3 {[%clk 0:03:01]}  d6 {[%clk 0:02:56]} 7. b3 {[%clk 0:03:00]}  Nf5 {[%clk 0:02:55]} 8. Bb2 {[%clk 0:03:00]}  h5 {[%clk 0:02:55]} 9. h4 {[%clk 0:02:57]}  O-O {[%clk 0:02:55]} 10. e3 {[%clk 0:02:56]}  e5 {[%clk 0:02:55]} 11. Ng5 {[%clk 0:02:56]}  f6 {[%clk 0:02:45]} 12. Bd5+ {[%clk 0:02:51]}  Kh8 {[%clk 0:02:44]} 13. Nf7+ {[%clk 0:02:52]}  Rxf7 {[%clk 0:02:45]} 14. Bxf7 {[%clk 0:02:53]}  Nfe7 {[%clk 0:02:44]} 15. Bxg6 {[%clk 0:02:43]}  Bg4 {[%clk 0:02:38]} 16. f3 {[%clk 0:02:43]}  Bh3 {[%clk 0:02:36]} 17. Bxh5 {[%clk 0:02:44]}  Bxf1 {[%clk 0:02:36]} 18. Qxf1 {[%clk 0:02:45]}  f5 {[%clk 0:02:34]} 19. g4 {[%clk 0:02:37]}  Qg8 {[%clk 0:02:31]} 20. g5 {[%clk 0:02:37]}  Qh7 {[%clk 0:02:31]} 21. Bf7 {[%clk 0:02:33]}  Qxh4 {[%clk 0:02:23]} 22. Qg2 {[%clk 0:02:34]}  Nb4 {[%clk 0:02:12]} 23. Kf1 {[%clk 0:02:29]}  e4 {[%clk 0:01:58]} 24. f4 {[%clk 0:02:22]}  Rf8 {[%clk 0:01:10]} 25. Ke2 {[%clk 0:02:22]}  Rxf7 {[%clk 0:01:05]} 26. Rh1 {[%clk 0:02:22]}  Qxh1 {[%clk 0:01:06]} 27. Qxh1+ {[%clk 0:02:23]}  Kg8 {[%clk 0:01:06]} 28. Nxe4 {[%clk 0:02:11]}  fxe4 {[%clk 0:00:49]} 29. Bxg7 {[%clk 0:02:10]}  Kxg7 {[%clk 0:00:47]} 30. Qxe4 {[%clk 0:02:11]}  Nbc6 {[%clk 0:00:47]} 31. a3 {[%clk 0:02:01]}  a5 {[%clk 0:00:44]} 32. Qe6 {[%clk 0:01:53]}  Nf5 {[%clk 0:00:43]} 33. Kd3 {[%clk 0:01:54]}  Nd8 {[%clk 0:00:36]} 34. Qe8 {[%clk 0:01:46]}  Nc6 {[%clk 0:00:32]} 35. Qe4 {[%clk 0:01:39]}  Ng3 {[%clk 0:00:29]} 36. Qg2 {[%clk 0:01:39]}  Nf5 {[%clk 0:00:29]} 37. Qh3 {[%clk 0:01:39]}  Nce7 {[%clk 0:00:23]} 38. e4 {[%clk 0:01:36]}  Nd4 {[%clk 0:00:23]} 39. f5 {[%clk 0:01:36]}  Nec6 {[%clk 0:00:18]} 40. Qh6+ {[%clk 0:01:19]}  Kg8 {[%clk 0:00:19]} 41. Qg6+ {[%clk 0:01:17]}  Rg7 {[%clk 0:00:17]} 42. Qe8+ {[%clk 0:01:14]}  Kh7 {[%clk 0:00:18]} 43. g6+ {[%clk 0:01:15]}  Kh6 {[%clk 0:00:16]} 44. Qh8+ {[%clk 0:01:16]}  Kg5 {[%clk 0:00:15]} 45. Qxg7 {[%clk 0:01:17]}  Ne5+ {[%clk 0:00:16]} 46. Qxe5 {[%clk 0:01:17]}  dxe5 {[%clk 0:00:16]} 47. g7 {[%clk 0:01:18]} 1-0


[Site "https://www.chess.com"]

[Event "Titled Tuesday Blitz August 23 Late 2022"]
[White "Beerdsen, Thomas"]
[Black "Barria Zuniga, Daniel"]
[WhiteFideId "1030108"]
[BlackFideId "3400816"]
[WhiteElo "2567"]
[BlackElo "2414"]
[Result "1-0"]
[Round "03"]
[TimeControl "180+1"]
[Date "2022.08.23"]
[WhiteClock "0:01:53"]
[BlackClock "0:00:02"]

1. e4 {[%clk 0:03:00]}  c5 {[%clk 0:02:42]} 2. Nf3 {[%clk 0:02:59]}  e6 {[%clk 0:02:38]} 3. d4 {[%clk 0:02:59]}  cxd4 {[%clk 0:02:34]} 4. Bg5 {[%clk 0:03:00]}  Qc7 {[%clk 0:02:28]} 5. Nxd4 {[%clk 0:02:54]}  a6 {[%clk 0:02:20]} 6. Bd3 {[%clk 0:02:55]}  Nf6 {[%clk 0:02:15]} 7. O-O {[%clk 0:02:53]}  Be7 {[%clk 0:02:12]} 8. Nc3 {[%clk 0:02:46]}  O-O {[%clk 0:02:03]} 9. Qf3 {[%clk 0:02:43]}  d6 {[%clk 0:02:02]} 10. Qg3 {[%clk 0:02:41]}  Nc6 {[%clk 0:01:47]} 11. Nxc6 {[%clk 0:02:39]}  bxc6 {[%clk 0:01:47]} 12. Rae1 {[%clk 0:02:32]}  e5 {[%clk 0:01:26]} 13. Qh4 {[%clk 0:02:22]}  h6 {[%clk 0:01:25]} 14. Bd2 {[%clk 0:02:18]}  Nh7 {[%clk 0:01:11]} 15. Qg3 {[%clk 0:02:18]}  Bg5 {[%clk 0:01:11]} 16. f4 {[%clk 0:02:15]}  exf4 {[%clk 0:01:10]} 17. Bxf4 {[%clk 0:02:16]}  Bxf4 {[%clk 0:01:10]} 18. Rxf4 {[%clk 0:02:17]}  Be6 {[%clk 0:01:05]} 19. Kh1 {[%clk 0:02:09]}  a5 {[%clk 0:01:02]} 20. Ne2 {[%clk 0:02:01]}  Qb6 {[%clk 0:00:57]} 21. b3 {[%clk 0:01:57]}  Qc5 {[%clk 0:00:58]} 22. a4 {[%clk 0:01:55]}  Qe5 {[%clk 0:00:57]} 23. Ref1 {[%clk 0:01:55]}  Rab8 {[%clk 0:00:53]} 24. Qe3 {[%clk 0:01:52]}  Rb4 {[%clk 0:00:48]} 25. Ng3 {[%clk 0:01:52]}  c5 {[%clk 0:00:11]} 26. Nf5 {[%clk 0:01:52]}  c4 {[%clk 0:00:09]} 27. bxc4 {[%clk 0:01:53]}  Bxc4 {[%clk 0:00:09]} 28. Rg4 {[%clk 0:01:53]}  g6 {[%clk 0:00:03]} 29. Nxh6+ {[%clk 0:01:53]}  Kg7 {[%clk 0:00:03]} 30. Nf5+ {[%clk 0:01:52]}  Kh8 {[%clk 0:00:02]} 31. Qh6 {[%clk 0:01:53]} 1-0


[Site "https://www.chess.com"]

[Event "Titled Tuesday Blitz August 23 Late 2022"]
[White "Buchenau, Frank"]
[Black "Papasimakopoulos, Alexandros"]
[WhiteFideId "4604350"]
[BlackFideId "4244125"]
[WhiteElo "2157"]
[BlackElo "2357"]
[Result "0-1"]
[Round "03"]
[TimeControl "180+1"]
[Date "2022.08.23"]
[WhiteClock "0:00:09"]
[BlackClock "0:01:36"]

1. e4 {[%clk 0:03:00]}  e6 {[%clk 0:02:59]} 2. Nf3 {[%clk 0:03:00]}  d5 {[%clk 0:03:00]} 3. Nc3 {[%clk 0:03:00]}  Nf6 {[%clk 0:02:57]} 4. e5 {[%clk 0:03:00]}  Nfd7 {[%clk 0:02:57]} 5. d4 {[%clk 0:03:00]}  c5 {[%clk 0:02:58]} 6. dxc5 {[%clk 0:03:01]}  Nc6 {[%clk 0:02:58]} 7. Bf4 {[%clk 0:03:01]}  Bxc5 {[%clk 0:02:56]} 8. Bd3 {[%clk 0:03:00]}  h6 {[%clk 0:02:56]} 9. Bg3 {[%clk 0:03:00]}  g5 {[%clk 0:02:53]} 10. Qe2 {[%clk 0:02:52]}  g4 {[%clk 0:02:53]} 11. Nd2 {[%clk 0:02:45]}  h5 {[%clk 0:02:51]} 12. Nb3 {[%clk 0:02:43]}  Bb4 {[%clk 0:02:45]} 13. O-O {[%clk 0:02:08]}  a6 {[%clk 0:02:40]} 14. Nxd5 {[%clk 0:02:02]}  exd5 {[%clk 0:02:34]} 15. e6 {[%clk 0:02:03]}  Nf6 {[%clk 0:02:32]} 16. exf7+ {[%clk 0:01:52]}  Kxf7 {[%clk 0:02:33]} 17. f3 {[%clk 0:01:44]}  h4 {[%clk 0:02:30]} 18. Bf2 {[%clk 0:01:34]}  g3 {[%clk 0:02:26]} 19. hxg3 {[%clk 0:01:32]}  hxg3 {[%clk 0:02:27]} 20. Bxg3 {[%clk 0:01:29]}  Bd6 {[%clk 0:02:28]} 21. Qf2 {[%clk 0:01:17]}  Be6 {[%clk 0:02:14]} 22. Rae1 {[%clk 0:01:16]}  Bxg3 {[%clk 0:02:12]} 23. Qxg3 {[%clk 0:01:16]}  Qb8 {[%clk 0:02:13]} 24. f4 {[%clk 0:01:13]}  Qg8 {[%clk 0:02:10]} 25. Qf2 {[%clk 0:00:25]}  Qg4 {[%clk 0:02:00]} 26. Qb6 {[%clk 0:00:18]}  Rag8 {[%clk 0:01:55]} 27. Qxb7+ {[%clk 0:00:15]}  Bd7 {[%clk 0:01:55]} 28. Re2 {[%clk 0:00:13]}  Qg3 {[%clk 0:01:36]} 29. Nc5 {[%clk 0:00:12]}  Rh2 {[%clk 0:01:36]} 30. Nxd7 {[%clk 0:00:09]}  Rxg2+ {[%clk 0:01:36]} 31. Rxg2 {[%clk 0:00:09]}  Qxg2# {[%clk 0:01:36]} 0-1


[Site "https://www.chess.com"]

[Event "Titled Tuesday Blitz August 23 Late 2022"]
[White "Carlsen, Magnus"]
[Black "Shirov, Alexei"]
[WhiteFideId "1503014"]
[BlackFideId "2209390"]
[WhiteElo "2830"]
[BlackElo "2678"]
[Result "1-0"]
[Round "03"]
[TimeControl "180+1"]
[Date "2022.08.23"]
[WhiteClock "0:00:46"]
[BlackClock "0:00:20"]

1. c4 {[%clk 0:03:00]}  c6 {[%clk 0:02:58]} 2. Nf3 {[%clk 0:02:57]}  d5 {[%clk 0:02:58]} 3. e3 {[%clk 0:02:57]}  Nf6 {[%clk 0:02:57]} 4. Nc3 {[%clk 0:02:54]}  Nbd7 {[%clk 0:02:56]} 5. cxd5 {[%clk 0:02:50]}  cxd5 {[%clk 0:02:55]} 6. d4 {[%clk 0:02:50]}  a6 {[%clk 0:02:54]} 7. a4 {[%clk 0:02:42]}  b6 {[%clk 0:02:49]} 8. Ne5 {[%clk 0:02:42]}  e6 {[%clk 0:02:45]} 9. f4 {[%clk 0:02:40]}  Bb4 {[%clk 0:02:41]} 10. Bd2 {[%clk 0:02:36]}  Bxc3 {[%clk 0:02:38]} 11. Bxc3 {[%clk 0:02:35]}  Ne4 {[%clk 0:02:38]} 12. Bb4 {[%clk 0:02:15]}  Nxe5 {[%clk 0:02:09]} 13. dxe5 {[%clk 0:01:56]}  Qh4+ {[%clk 0:01:32]} 14. g3 {[%clk 0:01:56]}  Nxg3 {[%clk 0:01:31]} 15. hxg3 {[%clk 0:01:56]}  Qxh1 {[%clk 0:01:31]} 16. Qd4 {[%clk 0:01:57]}  Rb8 {[%clk 0:01:24]} 17. Bd6 {[%clk 0:01:56]}  Rb7 {[%clk 0:01:13]} 18. O-O-O {[%clk 0:01:53]}  Qe4 {[%clk 0:01:08]} 19. Qxe4 {[%clk 0:01:52]}  dxe4 {[%clk 0:01:05]} 20. Bxa6 {[%clk 0:01:49]}  f6 {[%clk 0:01:01]} 21. Bxb7 {[%clk 0:01:24]}  Bxb7 {[%clk 0:01:01]} 22. Bc7 {[%clk 0:01:25]}  Ke7 {[%clk 0:01:01]} 23. exf6+ {[%clk 0:01:21]}  gxf6 {[%clk 0:00:59]} 24. Bxb6 {[%clk 0:01:22]}  Rc8+ {[%clk 0:00:55]} 25. Kb1 {[%clk 0:01:21]}  Ba6 {[%clk 0:00:55]} 26. Rh1 {[%clk 0:01:12]}  Rg8 {[%clk 0:00:45]} 27. b4 {[%clk 0:01:07]}  Bd3+ {[%clk 0:00:44]} 28. Kb2 {[%clk 0:01:07]}  Rxg3 {[%clk 0:00:44]} 29. Rxh7+ {[%clk 0:01:01]}  Kd6 {[%clk 0:00:44]} 30. b5 {[%clk 0:00:54]}  Rg1 {[%clk 0:00:33]} 31. Rf7 {[%clk 0:00:50]}  f5 {[%clk 0:00:25]} 32. Bd4 {[%clk 0:00:49]}  Kd5 {[%clk 0:00:22]} 33. Rc7 {[%clk 0:00:47]}  Rb1+ {[%clk 0:00:20]} 34. Ka3 {[%clk 0:00:46]} 1-0


[Site "https://www.chess.com"]

[Event "Titled Tuesday Blitz August 23 Late 2022"]
[White "Godzwon, Iwo"]
[Black "Kosteniuk, Alexandra"]
[WhiteFideId "21802483"]
[BlackFideId "4128125"]
[WhiteElo "2201"]
[BlackElo "2469"]
[Result "0-1"]
[Round "03"]
[TimeControl "180+1"]
[Date "2022.08.23"]
[WhiteClock "0:00:15"]
[BlackClock "0:00:26"]

1. e4 {[%clk 0:03:00]}  c6 {[%clk 0:02:58]} 2. d4 {[%clk 0:02:54]}  d5 {[%clk 0:02:58]} 3. Nc3 {[%clk 0:02:49]}  dxe4 {[%clk 0:02:58]} 4. Nxe4 {[%clk 0:02:50]}  Nf6 {[%clk 0:02:59]} 5. Nxf6+ {[%clk 0:02:50]}  exf6 {[%clk 0:02:59]} 6. Be3 {[%clk 0:02:49]}  Qb6 {[%clk 0:02:50]} 7. Qc1 {[%clk 0:02:44]}  Na6 {[%clk 0:02:48]} 8. c3 {[%clk 0:02:22]}  Nc7 {[%clk 0:02:43]} 9. Bd3 {[%clk 0:02:22]}  Nd5 {[%clk 0:02:39]} 10. Ne2 {[%clk 0:02:23]}  Bg4 {[%clk 0:02:36]} 11. O-O {[%clk 0:02:21]}  Qc7 {[%clk 0:02:24]} 12. Nf4 {[%clk 0:02:16]}  O-O-O {[%clk 0:01:41]} 13. Nxd5 {[%clk 0:02:12]}  cxd5 {[%clk 0:01:41]} 14. Bf4 {[%clk 0:02:08]}  Bd6 {[%clk 0:01:40]} 15. Bxd6 {[%clk 0:02:08]}  Qxd6 {[%clk 0:01:39]} 16. Re1 {[%clk 0:02:08]}  Be6 {[%clk 0:01:36]} 17. Qe3 {[%clk 0:02:06]}  h5 {[%clk 0:01:34]} 18. Qf3 {[%clk 0:01:58]}  h4 {[%clk 0:01:29]} 19. h3 {[%clk 0:01:58]}  Kb8 {[%clk 0:01:29]} 20. Re3 {[%clk 0:01:57]}  Rde8 {[%clk 0:01:20]} 21. Rae1 {[%clk 0:01:58]}  a5 {[%clk 0:01:16]} 22. Bf5 {[%clk 0:01:52]}  Ka7 {[%clk 0:01:16]} 23. Qe2 {[%clk 0:01:52]}  Qb6 {[%clk 0:01:13]} 24. b3 {[%clk 0:00:51]}  Qc6 {[%clk 0:01:11]} 25. b4 {[%clk 0:00:47]}  Re7 {[%clk 0:00:55]} 26. b5 {[%clk 0:00:38]}  Qb6 {[%clk 0:00:51]} 27. a4 {[%clk 0:00:32]}  Rc8 {[%clk 0:00:47]} 28. Bc2 {[%clk 0:00:15]}  Rec7 {[%clk 0:00:44]} 29. Qd2 {[%clk 0:00:16]}  Qd6 {[%clk 0:00:42]} 30. Bb3 {[%clk 0:00:16]}  b6 {[%clk 0:00:42]} 31. Qb2 {[%clk 0:00:16]}  g5 {[%clk 0:00:40]} 32. R1e2 {[%clk 0:00:16]}  g4 {[%clk 0:00:40]} 33. hxg4 {[%clk 0:00:17]}  Bxg4 {[%clk 0:00:40]} 34. Re1 {[%clk 0:00:17]}  Be6 {[%clk 0:00:41]} 35. Rf3 {[%clk 0:00:16]}  Rg8 {[%clk 0:00:38]} 36. Ree3 {[%clk 0:00:15]}  h3 {[%clk 0:00:38]} 37. Rg3 {[%clk 0:00:15]}  Rxg3 {[%clk 0:00:35]} 38. Rxg3 {[%clk 0:00:16]}  hxg2 {[%clk 0:00:35]} 39. Kxg2 {[%clk 0:00:17]}  Qf4 {[%clk 0:00:35]} 40. Qe2 {[%clk 0:00:14]}  f5 {[%clk 0:00:32]} 41. Qe3 {[%clk 0:00:13]}  Qe4+ {[%clk 0:00:31]} 42. Qxe4 {[%clk 0:00:10]}  dxe4 {[%clk 0:00:32]} 43. Bxe6 {[%clk 0:00:09]}  fxe6 {[%clk 0:00:31]} 44. Rg6 {[%clk 0:00:09]}  Rxc3 {[%clk 0:00:29]} 45. Rxe6 {[%clk 0:00:10]}  Rd3 {[%clk 0:00:29]} 46. Re7+ {[%clk 0:00:10]}  Kb8 {[%clk 0:00:29]} 47. Re5 {[%clk 0:00:11]}  Rxd4 {[%clk 0:00:28]} 48. Rxf5 {[%clk 0:00:11]}  Rxa4 {[%clk 0:00:29]} 49. Re5 {[%clk 0:00:10]}  Rb4 {[%clk 0:00:29]} 50. Kg3 {[%clk 0:00:09]}  a4 {[%clk 0:00:29]} 51. Re8+ {[%clk 0:00:07]}  Kc7 {[%clk 0:00:28]} 52. Re7+ {[%clk 0:00:08]}  Kd6 {[%clk 0:00:28]} 53. Ra7 {[%clk 0:00:09]}  Kc5 {[%clk 0:00:28]} 54. Kf4 {[%clk 0:00:10]}  Kxb5 {[%clk 0:00:29]} 55. Ke5 {[%clk 0:00:10]}  Rb2 {[%clk 0:00:27]} 56. Kxe4 {[%clk 0:00:11]}  Rxf2 {[%clk 0:00:27]} 57. Kd3 {[%clk 0:00:12]}  Kb4 {[%clk 0:00:28]} 58. Ke3 {[%clk 0:00:11]}  Rh2 {[%clk 0:00:27]} 59. Kf3 {[%clk 0:00:12]}  b5 {[%clk 0:00:27]} 60. Kg3 {[%clk 0:00:12]}  Rc2 {[%clk 0:00:26]} 61. Kf3 {[%clk 0:00:13]}  Kb3 {[%clk 0:00:26]} 62. Ke3 {[%clk 0:00:14]}  b4 {[%clk 0:00:27]} 63. Kd3 {[%clk 0:00:15]}  Rh2 {[%clk 0:00:27]} 64. Kd4 {[%clk 0:00:15]}  a3 {[%clk 0:00:27]} 65. Kd3 {[%clk 0:00:15]}  a2 {[%clk 0:00:26]} 0-1


[Site "https://www.chess.com"]